Cogmind - Beta 12 X1 @@@ ROGUE MODE // 2022.08.22 @ 16:58:32 Player: btmk16 Result: Self-destructed Performance ------------- Evolutions (1) 500 Regions Visited (2) 400 Robots Destroyed (7) 35 Value Destroyed (95) 95 Prototype IDs (0) 0 Alien Tech Used (0) 0 Bonus (0) 0 TOTAL SCORE: 1030 Bonus ------- None Cogmind --------- Core Integrity 253/400 Matter 50/300 Energy 95/100 System Corruption 0% Temperature Cool (0) Movement Core (50) Location -9/Materials Parts ------- > --- POWER (1) -------- (None) > --- PROPULSION (4) --- (None) > --- UTILITY (2) ------ (None) > --- WEAPON (2) ------- (None) > --- INVENTORY (5) ---- Ion Engine Light Treads Small Storage Unit EM Pulse Gun Peak State ------------ > --- POWER ------------ (None) > --- PROPULSION ------- Light Treads Light Treads > --- UTILITY ---------- (None) > --- WEAPON ----------- EM Pulse Gun Assault Rifle > --- INVENTORY -------- Ion Engine Small Storage Unit [Rating: 4] Favorites ----------- Power None Propulsion Light Treads Treads Light Treads Flight Unit Flight Unit Utility None Weapon Assault Rifle Energy Gun EM Pulse Gun Ballistic Gun Assault Rifle Launcher Mini Grenade Launcher Build | -11 -10 -9 ------- Run | Scr Mat Mat Slots Evolved 2 | . . 2 Power . | . . . Propulsion 2 | . . 2 Utility . | . . . Weapon . | . . . Parts Attached 9 | 4 2 3 Power . | . . . Engine . | . . . Core . | . . . Reactor . | . . . Propulsion 5 | 2 1 2 Treads 2 | 2 . . Leg . | . . . Wheel . | . . . Hover . | . . . Flight 3 | . 1 2 Utility . | . . . Device . | . . . Storage . | . . . Processor . | . . . Hackware . | . . . Protection . | . . . Artifact . | . . . Weapon 4 | 2 1 1 Energy Gun 1 | 1 . . Energy Cannon . | . . . Ballistic Gun 2 | 1 1 . Ballistic Cannon . | . . . Launcher 1 | . . 1 Special Weapon . | . . . Impact Weapon . | . . . Slashing Weapon . | . . . Piercing Weapon . | . . . Special Melee Weapon . | . . . Unidentified Prototypes . | . . . Parts Lost 3 | . . 3 Power . | . . . Propulsion 2 | . . 2 Utility . | . . . Weapon 1 | . . 1 Highest Loss Streak 3 | . . 3 To Critical Strikes . | . . . Average Slot Usage (%) 40 | . 48 25 Treads 16 | . 25 . Flight 4 | . 1 11 Ballistic Gun 17 | . 21 11 Launcher 1 | . . 3 Naked Turns 2 | . . 2 Heaviest Build 4 | 2 4 4 Greatest Support 40 | 3 40 4 Greatest Overweight (x) . | . . . Average Overweight (x) . | . . . Largest Inventory Capacity 5 | 5 5 5 Average Capacity 5 | 5 5 5 Most Carried 5 | 5 5 5 Average Carried 4 | 2 4 4 Final Capacity 5 | 5 5 5 Final Carried 5 | 5 5 4 Class Distribution -------------------- 100% | Mutant Dominant Class ---------------- Mutant | -10/Materials Mutant | -9/Materials Resources | -11 -10 -9 ----------- Run | Scr Mat Mat Matter Collected 111 | 55 . 56 Remotely . | . . . Salvage Created 179 | . 94 85 Parts 10 | . 5 5 Haulers Intercepted 1 | . 1 . Recyclers Shooed . | . . . Parts Field Recycled . | . . . Retrieved Matter . | . . . Parts Self-Destructed . | . . . Prevented . | . . . Kills | -11 -10 -9 ------- Run | Scr Mat Mat Combat Hostiles Destroyed 5 | . 1 4 Guns 1 | . 1 . AOE 4 | . . 4 Classes Destroyed 4 | . 2 2 Hauler 1 | . 1 . Recycler 1 | . . 1 Swarmer 4 | . . 4 Grunt 1 | . 1 . Best Kill Streak 5 | . 1 5 Combat Bots Only 4 | . 1 4 Max Kills in Single Turn 4 | . 1 4 Gunslinging . | . . . Exploded 3 | . . 3 Melee . | . . . Uniques/NPCs Destroyed . | . . . Combat | -11 -10 -9 -------- Run | Scr Mat Mat Damage Taken 430 | . 153 277 Core 216 | . 69 147 Absorbed by Shields . | . . . Core Remaining (%) 86 | 100 72 . Volleys Fired 14 | . 12 2 Largest 2 | . 2 1 Hottest 40 | . 40 30 Shots Fired 24 | . 22 2 Gun 22 | . 22 . Cannon . | . . . Launcher 2 | . . 2 Special . | . . . Kinetic 22 | . 22 . Thermal . | . . . Explosive 2 | . . 2 Electromagnetic . | . . . Robot Hit Streak 5 | . 5 5 Robot Miss Streak 2 | . 2 . Penetration Max . | . . . Secondary Targets . | . . . Shots Hit Robots 17 | . 15 2 Core Hits 11 | . 6 5 Critical Kills . | . . . Critical Parts Destroyed . | . . . Critical Strikes . | . . . Melee Attacks . | . . . Impact . | . . . Slashing . | . . . Piercing . | . . . Sneak Attacks . | . . . Combat Hostiles . | . . . Follow-up Attacks . | . . . Damage Inflicted 436 | . 195 241 Guns 195 | . 195 . Cannons . | . . . Explosions 241 | . . 241 Melee . | . . . Ramming . | . . . Kinetic 195 | . 195 . Thermal . | . . . Explosive 241 | . . 241 Electromagnetic . | . . . Impact . | . . . Slashing . | . . . Piercing . | . . . Highest Corruption . | . . . Average Corruption . | . . . Corruption Purged . | . . . Corruption Blocked . | . . . Overload Shots . | . . . Overflow Damage 36 | . . 36 Projectiles . | . . . Explosions 36 | . . 36 Melee . | . . . Knockbacks . | . . . Impact . | . . . Kinetic . | . . . Secondary . | . . . Self-Inflicted Damage 28 | . . 28 Shots 1 | . . 1 Rammed . | . . . Targets Rammed . | . . . Kicked . | . . . Crushed . | . . . Highest Temperature . | . . . Average Temperature . | . . . Received Heat Transfer 117 | . 81 36 Siege Activations . | . . . Robots Corrupted . | . . . Combat Hostiles . | . . . Parts Fried . | . . . Impact Corruptions . | . . . Robots Melted . | . . . Combat Hostiles . | . . . Parts Melted . | . . . Heat Transferred . | . . . Parts Sabotaged . | . . . Parts Stolen . | . . . Parts Stripped . | . . . Power Chain Reactions . | . . . Missiles Intercepted . | . . . Alert | -11 -10 -9 ------- Run | Scr Mat Mat Peak Influence 220 | . 87 220 Initial 36 | . . 36 Average 49 | . 45 76 Maximum Alert Level 1 | . . 1 Low Security (%) 98 | 100 100 96 Level 1 1 | . . 3 Level 2 . | . . . Level 3 . | . . . Level 4 . | . . . Level 5 . | . . . High Security . | . . . Max Security . | . . . Squads Dispatched 1 | . . 1 Investigation 1 | . . 1 Extermination . | . . . Reinforcement . | . . . Assault . | . . . Garrison . | . . . Intercept . | . . . Searches Triggered . | . . . Construction Impeded . | . . . Haulers Reinforced . | . . . Active Scanning Responses . | . . . Cargo Convoy Interrupts . | . . . Stealth | -11 -10 -9 --------- Run | Scr Mat Mat Distress Signals 1 | . . 1 Communications Jammed . | . . . Distress Signals . | . . . Times Spotted 12 | . 5 7 Peak Tracking Total 7 | . 5 7 Tactical Retreats 1 | . 1 . Traps | -11 -10 -9 ------- Run | Scr Mat Mat Traps Triggered 1 | . . 1 Indirectly . | . . . Trap Hack Attempts . | . . . Triggered . | . . . Disarmed . | . . . Reprogrammed . | . . . Reused . | . . . Traps Extracted . | . . . Installed . | . . . Triggered . | . . . Machines | -11 -10 -9 ---------- Run | Scr Mat Mat Machines Disabled . | . . . Max in Single Turn . | . . . Machines Sabotaged . | . . . Garrisons Compromised . | . . . Overloaded Fab Kills . | . . . Hacking | -11 -10 -9 --------- Run | Scr Mat Mat Machines Accessed 2 | . 1 1 Terminals 2 | . 1 1 Fabricators . | . . . Repair Stations . | . . . Recycling Units . | . . . Scanalyzers . | . . . Garrison Access . | . . . Total Hacks 5 | . 2 3 Successful 2 | . 1 1 Failed 3 | . 1 2 Catastrophic . | . . . Database Lockouts . | . . . Manual 2 | . 2 . Terminals 5 | . 2 3 Fabricators . | . . . Repair Stations . | . . . Recycling Units . | . . . Scanalyzers . | . . . Garrison Access . | . . . Terminal Hacks 1 | . . 1 Zone Layout 1 | . . 1 Fabricator Hacks . | . . . Repair Station Hacks . | . . . Recycling Unit Hacks . | . . . Scanalyzer . | . . . Garrison Access Hacks . | . . . Unauthorized Hacks 1 | . 1 . Terminals 1 | . 1 . Botnet 1 | . 1 . Fabricators . | . . . Repair Stations . | . . . Recycling Units . | . . . Scanalyzers . | . . . Garrison Access . | . . . Data Cores Recovered . | . . . Used . | . . . Hacking Detections 2 | . 1 1 Full Trace Events 1 | . . 1 Feedback Events . | . . . Feedback Blocked . | . . . Robot Schematics Acquired . | . . . Robots Built . | . . . Authchips . | . . . Time . | . . . Total Robot Build Rating . | . . . Part Schematics Acquired . | . . . Parts Built . | . . . Authchips . | . . . Time . | . . . Total Part Build Rating . | . . . Parts Repaired . | . . . Time . | . . . Parts Recycled . | . . . Recycled Matter . | . . . Retrieved Matter . | . . . Retrieved Components . | . . . Parts Scanalyzed . | . . . Part Schematics Acquired . | . . . Parts Damaged . | . . . Bothacking | -11 -10 -9 ------------ Run | Scr Mat Mat Used RIF Installer . | . . . Robots Hacked . | . . . Non-combat . | . . . Combat . | . . . Robot Hacks Applied . | . . . Relay Couplers Released . | . . . Fabnet Peak Effective % . | . . . Robots Rewired . | . . . Allies Hacked . | . . . Hacks Repelled . | . . . Allies | -11 -10 -9 -------- Run | Scr Mat Mat Total Allies . | . . . Largest Group . | . . . Highest-Rated Group . | . . . Highest-Rated Ally . | . . . Total Orders . | . . . Ally Attacks . | . . . Total Damage . | . . . Kills . | . . . Allies Corrupted . | . . . Allies Melted . | . . . Intel | -11 -10 -9 ------- Run | Scr Mat Mat Robot Analysis Total . | . . . Derelict Logs Recovered . | . . . Drone Launches . | . . . Drone Recoveries . | . . . Exploration | -11 -10 -9 ------------- Run | Scr Mat Mat Turns Passed 196 | 28 106 62 Spaces Moved 255 | 34 91 130 Core 97 | 34 63 . Treads 13 | . 13 . Legs . | . . . Wheels . | . . . Hover . | . . . Flight 145 | . 15 130 Fastest Speed 40 | 50 40 40 Average Speed 49 | 50 64 40 Slowest Speed 160 | 50 160 40 Overloaded Moves . | . . . Propulsion Burnouts . | . . . Robots Hopped 3 | . . 3 Cave-ins Triggered . | . . . Exploration Rate (%) 14 | 3 25 16 Regions Visited 2 Branch Regions . Pre-discovered Areas . | . . . Known Exits Taken . | . . . Unknown Exits Taken 2 | 1 1 . Scrap Searched . | . . . Spaces Dug . | . . . Terrain Destroyed 25 | . . 25 Melee . | . . . Projectile . | . . . AOE 25 | . . 25 Terrain Rammed . | . . . Walls Destroyed . | . . . Machines Disabled . | . . . Actions | -11 -10 -9 --------- Run | Scr Mat Mat Total 292 | 42 116 134 Wait 10 | . 10 . Move 247 | 33 90 124 Hop 3 | . . 3 Pick Up 5 | 4 . 1 Fast Attach 7 | 4 1 2 Attach 2 | . 1 1 Detach 2 | 1 1 . Swap . | . . . Drop 2 | . 1 1 Fire 14 | . 12 2 Melee . | . . . Ram . | . . . Kick . | . . . Crush . | . . . Escape Stasis . | . . . Rewire . | . . . Trap . | . . . Miscellaneous . | . . . Route ------- -11/Scrapyard -10/Materials -9/Materials History --------- Turn | Location | Event 11 | -11/Scrapyard | Discovered new exit (range 15) 29 | -11/Scrapyard | Entered Materials 125 | -10/Materials | Discovered new exit (range 10) 135 | -10/Materials | Entered another Materials area 135 | -9/Materials | Evolved 2 slots: Propulsion x2 197 | -9/Materials | Self-destructed Last Messages --------------- 00156_ Acquired Mni. Grenade Launcher. 00166_ Triggered Blade Trap. 00166_ Massive razor-sharp blades shoot up from within the floor. 00166_ Flight Unit severed. 00166_ Assault Rifle severed. 00166_ Acquired Flight Unit. 00184_ Y-45 Defender destroyed. 00186_ Acquired 54 matter. 00187_ R-06 Scavenger collects Imp. Ion Engine. 00188_ Destroyed Lgt. Ion Engine. 00188_ S-10 Pest destroyed. 00188_ R-06 Scavenger destroyed. 00188_ S-10 Pest destroyed. 00192_ Acquired 2 matter. 00193_ Flight Unit destroyed. 00194_ Acquired Flight Unit. 00195_ Flight Unit destroyed. 00195_ S-10 Pest destroyed. 00195_ Mni. Grenade Launcher destroyed. 00195_ Destroyed Mni. Grenade Launcher. Map ----- +----------------------------------------------------+ | ????????????????????????# #??+########? | | ???????????????????????## ##? # | | ???????????????????????# # # | | ???????????????????????# # # | | ???????????????????????# + # | | ???????????????????????# # # | | ???????????????????????## ## # | | ????????????????????????# #?? # | | ????????????????????????# #??#########? | | ??????????????########### #? #?? | | ??????????????# # #? #?? | | ??????????????# # # #?? | | ??????????????# # # #?? | | ??????????????# + + #?? | | ??????????????# # # #?? | | ??????????????#* # # #?? | | ??????????????# # #? #?? | | ??????????????# # #?#########?? | | ??????????????########### #???????????? | | ??????????############### ###?????????? | | ??????????# ] #?????????? | | ??????????# ! /!! *% #####?????? | | ??????????# /!! ! Y^^ #?????? | | ??????????# /!! % != [ #?????? | | ??????????# * +###?????? | | ??????????############# @ #???? | | ????????????????# ! !!!#???? | | ????????????????# % !! #???? | | ????????????????# / !! #???? | | ????????????????######## #??? | | ??????????????########## ## "T" ##??? | | ??????????????# ########???? | | ??????????????# """ """ """ #??????????? | | ??????????????# """ """ """ #??????????? | | ??????????????# """ """ """ #??????????? | | ??????????????# #??????????? | | ??????????????# #??????????? | | ??????????????###############??????????? | | | | | | | | | | | | | | | | | | | | | | | | | +----------------------------------------------------+ Best States ------------- Heat Dissipation 28 Energy Generation 5 Energy Capacity 100 Matter Stores 135 Matter Capacity 300 Sight Range 16 Terrain Scan Density 10 Evasion (%) 62 Recoil Reduction 2 Item Schematics ----------------- None Robot Schematics ------------------ None Fabricated ------------ Nothing Alien Tech Used ----------------- None Achievements -------------- None Challenges ------------ None Game ------ Seed HackingCompositeWeb Manual? 0 Play Time 00:05:21 Cumulative 467.0 hours Start 2022.08.22 @ 16:52:59 End 2022.08.22 @ 16:58:32 Sessions 1 Manual Loads 0 Difficulty Rogue Special Mode None Game No. 515 Rogue 514 Adventurer 0 Explorer 1 Win Type - Total 14 Types 9/0/2/3/0/0/0/0/0 Lore% 79 Gallery% 88 Achievement% 69 Wizard Run 0 Options --------- ASCII 0 Keyboard 1 Movement Vi Keybinds 0 Fullscreen 1 Font 18/SmallcapsGlow Map View 76x50 Tactical HUD 1 Map Filters NONE Filters NONE Steam 1 RUN: 565b7f4e-4e58-4c89-8253-3558595c4f1d